[Event "Titled Tuesday Blitz August 22 Early 2023"]
[White "matenitian"]
[Black "Ibadov, Dashgyn"]
[BlackFideId "24107514"]
[WhiteElo "2511"]
[BlackElo "2591"]
[Result "0-1"]
[Round "9"]
[TimeControl "180+1"]
[Date "2023.08.22"]
[WhiteClock "0:00:03"]
[BlackClock "0:00:32"]
[Board "77"]

1. e4 {[%clk 0:03:00]}  e5 {[%clk 0:03:00]} 2. Nf3 {[%clk 0:02:56]}  Nc6 {[%clk 0:02:59]} 3. Bb5 {[%clk 0:02:56]}  a6 {[%clk 0:02:59]} 4. Ba4 {[%clk 0:02:56]}  Nf6 {[%clk 0:03:00]} 5. O-O {[%clk 0:02:56]}  b5 {[%clk 0:03:00]} 6. Bb3 {[%clk 0:02:56]}  Bc5 {[%clk 0:03:01]} 7. d3 {[%clk 0:02:56]}  d6 {[%clk 0:03:01]} 8. c3 {[%clk 0:02:50]}  O-O {[%clk 0:03:00]} 9. h3 {[%clk 0:02:50]}  Bb6 {[%clk 0:02:59]} 10. Re1 {[%clk 0:02:49]}  Ne7 {[%clk 0:03:00]} 11. a4 {[%clk 0:02:46]}  Rb8 {[%clk 0:02:57]} 12. Nbd2 {[%clk 0:02:41]}  Ng6 {[%clk 0:02:57]} 13. Nf1 {[%clk 0:02:41]}  Bb7 {[%clk 0:02:57]} 14. Be3 {[%clk 0:02:15]}  c5 {[%clk 0:02:47]} 15. axb5 {[%clk 0:02:09]}  axb5 {[%clk 0:02:48]} 16. Ng3 {[%clk 0:02:06]}  Re8 {[%clk 0:02:33]} 17. Nf5 {[%clk 0:01:56]}  d5 {[%clk 0:02:31]} 18. exd5 {[%clk 0:01:45]}  Nxd5 {[%clk 0:02:25]} 19. Bg5 {[%clk 0:01:43]}  f6 {[%clk 0:02:16]} 20. Bc1 {[%clk 0:01:34]}  Kh8 {[%clk 0:02:15]} 21. c4 {[%clk 0:01:22]}  Ndf4 {[%clk 0:02:11]} 22. cxb5 {[%clk 0:01:15]}  Nxd3 {[%clk 0:02:10]} 23. Rf1 {[%clk 0:01:08]}  e4 {[%clk 0:01:49]} 24. Nh2 {[%clk 0:01:00]}  Qd7 {[%clk 0:01:17]} 25. Qg4 {[%clk 0:00:46]}  Bc8 {[%clk 0:01:10]} 26. Ne3 {[%clk 0:00:41]}  Qd4 {[%clk 0:01:09]} 27. Qh5 {[%clk 0:00:38]}  Re5 {[%clk 0:00:57]} 28. Qe2 {[%clk 0:00:27]}  Ngf4 {[%clk 0:00:57]} 29. Qc2 {[%clk 0:00:24]}  Rg5 {[%clk 0:00:56]} 30. Neg4 {[%clk 0:00:18]}  h5 {[%clk 0:00:55]} 31. Bxf4 {[%clk 0:00:16]}  Nxf4 {[%clk 0:00:45]} 32. Rad1 {[%clk 0:00:16]}  Nd3 {[%clk 0:00:45]} 33. h4 {[%clk 0:00:15]}  Rxg4 {[%clk 0:00:42]} 34. Nxg4 {[%clk 0:00:12]}  hxg4 {[%clk 0:00:43]} 35. Bf7 {[%clk 0:00:09]}  g3 {[%clk 0:00:39]} 36. Bg6 {[%clk 0:00:07]}  gxf2+ {[%clk 0:00:39]} 37. Kh2 {[%clk 0:00:07]}  e3 {[%clk 0:00:33]} 38. g3 {[%clk 0:00:04]}  Qg4 {[%clk 0:00:32]} 39. Qxd3 {[%clk 0:00:03]}  Qh3# {[%clk 0:00:32]} 0-1


[Site "https://www.chess.com"]

[Event "Titled Tuesday Blitz August 22 Early 2023"]
[White "Marn, Jan"]
[Black "Rosen, Eric"]
[WhiteFideId "14619245"]
[BlackFideId "2032562"]
[WhiteElo "2499"]
[BlackElo "2588"]
[Result "0-1"]
[Round "9"]
[TimeControl "180+1"]
[Date "2023.08.22"]
[WhiteClock "0:01:08"]
[BlackClock "0:00:32"]
[Board "79"]

1. f4 {[%clk 0:02:51]}  g6 {[%clk 0:02:57]} 2. Nf3 {[%clk 0:02:48]}  Bg7 {[%clk 0:02:57]} 3. e3 {[%clk 0:02:48]}  c5 {[%clk 0:02:52]} 4. Be2 {[%clk 0:02:45]}  Nc6 {[%clk 0:02:48]} 5. O-O {[%clk 0:02:45]}  e6 {[%clk 0:02:45]} 6. c4 {[%clk 0:02:45]}  Nge7 {[%clk 0:02:45]} 7. Nc3 {[%clk 0:02:45]}  O-O {[%clk 0:02:45]} 8. b3 {[%clk 0:02:45]}  d5 {[%clk 0:02:42]} 9. Bb2 {[%clk 0:02:45]}  d4 {[%clk 0:02:38]} 10. Ne4 {[%clk 0:02:45]}  d3 {[%clk 0:02:29]} 11. Bxg7 {[%clk 0:02:45]}  Kxg7 {[%clk 0:02:26]} 12. Nxc5 {[%clk 0:02:45]}  dxe2 {[%clk 0:02:26]} 13. Qxe2 {[%clk 0:02:46]}  b6 {[%clk 0:02:22]} 14. Ne4 {[%clk 0:02:46]}  Bb7 {[%clk 0:02:22]} 15. d3 {[%clk 0:02:46]}  f6 {[%clk 0:01:48]} 16. Rfd1 {[%clk 0:02:39]}  Qc7 {[%clk 0:01:45]} 17. Qb2 {[%clk 0:02:33]}  Nf5 {[%clk 0:01:42]} 18. Kf2 {[%clk 0:02:28]}  Nb4 {[%clk 0:01:25]} 19. Nfg5 {[%clk 0:01:47]}  Rae8 {[%clk 0:01:11]} 20. a3 {[%clk 0:01:42]}  Nc6 {[%clk 0:00:51]} 21. g4 {[%clk 0:01:42]}  Nd6 {[%clk 0:00:43]} 22. Nxd6 {[%clk 0:01:42]}  Qxd6 {[%clk 0:00:44]} 23. Ne4 {[%clk 0:01:43]}  Qe7 {[%clk 0:00:34]} 24. g5 {[%clk 0:01:43]}  e5 {[%clk 0:00:34]} 25. gxf6+ {[%clk 0:01:41]}  Rxf6 {[%clk 0:00:35]} 26. Nxf6 {[%clk 0:01:40]}  Qxf6 {[%clk 0:00:35]} 27. Kg1 {[%clk 0:01:30]}  exf4 {[%clk 0:00:35]} 28. Qxf6+ {[%clk 0:01:30]}  Kxf6 {[%clk 0:00:36]} 29. exf4 {[%clk 0:01:29]}  Nd4 {[%clk 0:00:37]} 30. Kf2 {[%clk 0:01:15]}  Re2+ {[%clk 0:00:34]} 31. Kg3 {[%clk 0:01:15]}  Nf5+ {[%clk 0:00:32]} 32. Kh3 {[%clk 0:01:12]}  Bg2+ {[%clk 0:00:31]} 33. Kg4 {[%clk 0:01:08]}  h5# {[%clk 0:00:32]} 0-1


[Site "https://www.chess.com"]

[Event "Titled Tuesday Blitz August 22 Early 2023"]
[White "Ribeiro, Matheus Mendes Domingues"]
[Black "Bueno, Alfeu Junior Varela"]
[WhiteFideId "324226923"]
[BlackFideId "2108879"]
[WhiteElo "2567"]
[BlackElo "2438"]
[Result "1-0"]
[Round "9"]
[TimeControl "180+1"]
[Date "2023.08.22"]
[WhiteClock "0:00:26"]
[BlackClock "0:00:00"]
[Board "81"]

1. c4 {[%clk 0:03:00]}  e5 {[%clk 0:02:50]} 2. Nc3 {[%clk 0:03:01]}  Nc6 {[%clk 0:02:50]} 3. Nf3 {[%clk 0:03:02]}  f5 {[%clk 0:02:49]} 4. d4 {[%clk 0:03:01]}  e4 {[%clk 0:02:48]} 5. d5 {[%clk 0:03:02]}  exf3 {[%clk 0:02:40]} 6. dxc6 {[%clk 0:03:02]}  fxg2 {[%clk 0:02:39]} 7. cxd7+ {[%clk 0:03:02]}  Bxd7 {[%clk 0:02:38]} 8. Bxg2 {[%clk 0:03:02]}  Qh4 {[%clk 0:02:12]} 9. Qb3 {[%clk 0:02:41]}  Bc5 {[%clk 0:01:59]} 10. e3 {[%clk 0:02:18]}  Rb8 {[%clk 0:01:10]} 11. Bd2 {[%clk 0:02:18]}  Nf6 {[%clk 0:01:08]} 12. Nd5 {[%clk 0:01:57]}  O-O {[%clk 0:01:02]} 13. O-O-O {[%clk 0:01:28]}  Qxf2 {[%clk 0:00:50]} 14. Rhg1 {[%clk 0:01:28]}  Ne4 {[%clk 0:00:25]} 15. Bxe4 {[%clk 0:01:07]}  fxe4 {[%clk 0:00:26]} 16. Bc3 {[%clk 0:01:02]}  Rf7 {[%clk 0:00:25]} 17. Nf6+ {[%clk 0:00:55]}  Rxf6 {[%clk 0:00:24]} 18. Bxf6 {[%clk 0:00:51]}  Qxe3+ {[%clk 0:00:16]} 19. Kb1 {[%clk 0:00:37]}  Qxb3 {[%clk 0:00:09]} 20. Rxg7+ {[%clk 0:00:35]}  Kf8 {[%clk 0:00:09]} 21. axb3 {[%clk 0:00:34]}  Bf5 {[%clk 0:00:00]} 22. Rf1 {[%clk 0:00:26]} 1-0


[Site "https://www.chess.com"]

[Event "Titled Tuesday Blitz August 22 Early 2023"]
[White "Hua, Lefong"]
[Black "Devaev, Alexander"]
[WhiteFideId "2602253"]
[BlackFideId "4169395"]
[WhiteElo "2670"]
[BlackElo "2493"]
[Result "0-1"]
[Round "9"]
[TimeControl "180+1"]
[Date "2023.08.22"]
[WhiteClock "0:00:10"]
[BlackClock "0:00:12"]
[Board "83"]

1. d4 {[%clk 0:03:00]}  Nf6 {[%clk 0:02:53]} 2. c4 {[%clk 0:03:01]}  e6 {[%clk 0:02:53]} 3. Nc3 {[%clk 0:03:01]}  Bb4 {[%clk 0:02:53]} 4. f3 {[%clk 0:03:01]}  c5 {[%clk 0:02:53]} 5. a3 {[%clk 0:03:01]}  Bxc3+ {[%clk 0:02:53]} 6. bxc3 {[%clk 0:03:02]}  d6 {[%clk 0:02:53]} 7. e4 {[%clk 0:03:00]}  Nc6 {[%clk 0:02:50]} 8. Be3 {[%clk 0:02:59]}  b6 {[%clk 0:02:49]} 9. Bd3 {[%clk 0:02:43]}  e5 {[%clk 0:02:48]} 10. d5 {[%clk 0:02:42]}  Na5 {[%clk 0:02:45]} 11. Ne2 {[%clk 0:02:43]}  Ba6 {[%clk 0:02:45]} 12. Ng3 {[%clk 0:02:43]}  g6 {[%clk 0:02:23]} 13. O-O {[%clk 0:02:37]}  Qd7 {[%clk 0:02:16]} 14. Qe2 {[%clk 0:02:15]}  h5 {[%clk 0:02:04]} 15. Bg5 {[%clk 0:01:59]}  Nh7 {[%clk 0:02:01]} 16. Be3 {[%clk 0:01:55]}  h4 {[%clk 0:01:47]} 17. Nh1 {[%clk 0:01:54]}  Qa4 {[%clk 0:01:47]} 18. f4 {[%clk 0:01:50]}  Bxc4 {[%clk 0:01:36]} 19. fxe5 {[%clk 0:01:48]}  dxe5 {[%clk 0:01:37]} 20. Nf2 {[%clk 0:01:44]}  O-O-O {[%clk 0:01:21]} 21. Ng4 {[%clk 0:01:38]}  Bxd3 {[%clk 0:01:16]} 22. Qxd3 {[%clk 0:01:39]}  Qc4 {[%clk 0:01:15]} 23. Nxe5 {[%clk 0:01:37]}  Qxd3 {[%clk 0:01:13]} 24. Nxd3 {[%clk 0:01:38]}  f6 {[%clk 0:00:54]} 25. Nf4 {[%clk 0:01:31]}  g5 {[%clk 0:00:53]} 26. Ne6 {[%clk 0:01:29]}  Rd7 {[%clk 0:00:54]} 27. Rad1 {[%clk 0:01:23]}  Nc4 {[%clk 0:00:54]} 28. Bc1 {[%clk 0:01:24]}  Re8 {[%clk 0:00:50]} 29. Rde1 {[%clk 0:01:21]}  Ne5 {[%clk 0:00:33]} 30. Rd1 {[%clk 0:01:18]}  Nc4 {[%clk 0:00:26]} 31. a4 {[%clk 0:01:17]}  Kb7 {[%clk 0:00:25]} 32. h3 {[%clk 0:01:13]}  Ka6 {[%clk 0:00:25]} 33. g3 {[%clk 0:01:03]}  hxg3 {[%clk 0:00:23]} 34. Kg2 {[%clk 0:01:03]}  Ka5 {[%clk 0:00:24]} 35. Kxg3 {[%clk 0:01:03]}  Kxa4 {[%clk 0:00:25]} 36. Rde1 {[%clk 0:00:54]}  Kb5 {[%clk 0:00:23]} 37. Re2 {[%clk 0:00:53]}  Ka6 {[%clk 0:00:23]} 38. Ra2+ {[%clk 0:00:52]}  Kb7 {[%clk 0:00:24]} 39. Ra4 {[%clk 0:00:43]}  Nd6 {[%clk 0:00:20]} 40. Re1 {[%clk 0:00:41]}  Nf7 {[%clk 0:00:18]} 41. Be3 {[%clk 0:00:37]}  Ne5 {[%clk 0:00:15]} 42. Rb1 {[%clk 0:00:36]}  Kc8 {[%clk 0:00:14]} 43. c4 {[%clk 0:00:31]}  Rde7 {[%clk 0:00:13]} 44. Rb3 {[%clk 0:00:27]}  Rxe6 {[%clk 0:00:13]} 45. dxe6 {[%clk 0:00:27]}  Nc6 {[%clk 0:00:14]} 46. Ra1 {[%clk 0:00:25]}  Rxe6 {[%clk 0:00:14]} 47. Bf2 {[%clk 0:00:20]}  Rxe4 {[%clk 0:00:14]} 48. Rc1 {[%clk 0:00:20]}  Nf8 {[%clk 0:00:13]} 49. Rf3 {[%clk 0:00:20]}  Re6 {[%clk 0:00:13]} 50. Re1 {[%clk 0:00:19]}  Ne5 {[%clk 0:00:12]} 51. Rf5 {[%clk 0:00:18]}  Nfg6 {[%clk 0:00:12]} 52. Kg2 {[%clk 0:00:16]}  Kd7 {[%clk 0:00:13]} 53. Bg3 {[%clk 0:00:16]}  Nxc4 {[%clk 0:00:13]} 54. Rd1+ {[%clk 0:00:16]}  Ke8 {[%clk 0:00:12]} 55. Bf2 {[%clk 0:00:16]}  Nce5 {[%clk 0:00:12]} 56. Kf1 {[%clk 0:00:16]}  Kf7 {[%clk 0:00:13]} 57. Be1 {[%clk 0:00:15]}  Ne7 {[%clk 0:00:13]} 58. Rf2 {[%clk 0:00:15]}  Kg6 {[%clk 0:00:14]} 59. Ra2 {[%clk 0:00:16]}  Nf5 {[%clk 0:00:14]} 60. Rxa7 {[%clk 0:00:16]}  Ne3+ {[%clk 0:00:15]} 61. Ke2 {[%clk 0:00:17]}  Nxd1 {[%clk 0:00:15]} 62. Kxd1 {[%clk 0:00:18]}  c4 {[%clk 0:00:16]} 63. Bf2 {[%clk 0:00:18]}  b5 {[%clk 0:00:16]} 64. Rb7 {[%clk 0:00:18]}  Nd3 {[%clk 0:00:14]} 65. Bd4 {[%clk 0:00:18]}  b4 {[%clk 0:00:14]} 66. Kd2 {[%clk 0:00:17]}  Rd6 {[%clk 0:00:14]} 67. Ke3 {[%clk 0:00:17]}  b3 {[%clk 0:00:13]} 68. Bc3 {[%clk 0:00:17]}  Re6+ {[%clk 0:00:13]} 69. Kd4 {[%clk 0:00:17]}  Rc6 {[%clk 0:00:13]} 70. Kd5 {[%clk 0:00:16]}  Rc8 {[%clk 0:00:13]} 71. Rb6 {[%clk 0:00:17]}  Nf4+ {[%clk 0:00:13]} 72. Ke4 {[%clk 0:00:17]}  Re8+ {[%clk 0:00:12]} 73. Kf3 {[%clk 0:00:10]}  Nd5 {[%clk 0:00:12]} 0-1


[Site "https://www.chess.com"]

[Event "Titled Tuesday Blitz August 22 Early 2023"]
[White "Kavutskiy, Konstantin"]
[Black "Gavilan Diaz, Mario"]
[WhiteFideId "2026384"]
[BlackFideId "2260905"]
[WhiteElo "2667"]
[BlackElo "2490"]
[Result "1-0"]
[Round "9"]
[TimeControl "180+1"]
[Date "2023.08.22"]
[WhiteClock "0:00:48"]
[BlackClock "0:00:20"]
[Board "84"]

1. e4 {[%clk 0:03:00]}  b6 {[%clk 0:02:58]} 2. d4 {[%clk 0:03:00]}  Bb7 {[%clk 0:02:58]} 3. Bd3 {[%clk 0:02:59]}  e6 {[%clk 0:02:58]} 4. Nf3 {[%clk 0:02:59]}  Nf6 {[%clk 0:02:58]} 5. Qe2 {[%clk 0:02:59]}  d5 {[%clk 0:02:56]} 6. e5 {[%clk 0:02:58]}  Ne4 {[%clk 0:02:56]} 7. Nbd2 {[%clk 0:02:58]}  Nxd2 {[%clk 0:02:56]} 8. Bxd2 {[%clk 0:02:59]}  c5 {[%clk 0:02:52]} 9. c3 {[%clk 0:02:51]}  Nc6 {[%clk 0:02:52]} 10. O-O {[%clk 0:02:49]}  Be7 {[%clk 0:02:52]} 11. a3 {[%clk 0:02:47]}  a5 {[%clk 0:02:47]} 12. g3 {[%clk 0:02:37]}  O-O {[%clk 0:02:47]} 13. h4 {[%clk 0:02:36]}  h6 {[%clk 0:02:24]} 14. Rfe1 {[%clk 0:02:31]}  a4 {[%clk 0:02:16]} 15. Nh2 {[%clk 0:02:11]}  cxd4 {[%clk 0:02:04]} 16. Qh5 {[%clk 0:02:11]}  f5 {[%clk 0:01:45]} 17. exf6 {[%clk 0:01:52]}  Bxf6 {[%clk 0:01:43]} 18. Rxe6 {[%clk 0:01:39]}  dxc3 {[%clk 0:01:39]} 19. Bxh6 {[%clk 0:01:28]}  cxb2 {[%clk 0:01:25]} 20. Rae1 {[%clk 0:01:13]}  Nd4 {[%clk 0:00:59]} 21. Bxg7 {[%clk 0:01:08]}  Nxe6 {[%clk 0:00:26]} 22. Qh7+ {[%clk 0:00:56]}  Kf7 {[%clk 0:00:25]} 23. Bxf6+ {[%clk 0:00:48]}  Kxf6 {[%clk 0:00:21]} 24. Qg6+ {[%clk 0:00:48]}  Ke7 {[%clk 0:00:20]} 25. Qxe6# {[%clk 0:00:48]} 1-0


[Site "https://www.chess.com"]

[Event "Titled Tuesday Blitz August 22 Early 2023"]
[White "Tregubov, Pavel V."]
[Black "Itkis, Boris"]
[WhiteFideId "4115341"]
[BlackFideId "1209167"]
[WhiteElo "2637"]
[BlackElo "2487"]
[Result "1-0"]
[Round "9"]
[TimeControl "180+1"]
[Date "2023.08.22"]
[WhiteClock "0:02:50"]
[BlackClock "0:02:38"]
[Board "85"]

1. e4 {[%clk 0:03:00]}  e6 {[%clk 0:02:59]} 2. d4 {[%clk 0:02:59]}  d5 {[%clk 0:02:59]} 3. e5 {[%clk 0:02:58]}  c5 {[%clk 0:02:59]} 4. c3 {[%clk 0:02:58]}  Nc6 {[%clk 0:03:00]} 5. Nf3 {[%clk 0:02:58]}  Qb6 {[%clk 0:03:00]} 6. Be2 {[%clk 0:02:58]}  cxd4 {[%clk 0:03:00]} 7. cxd4 {[%clk 0:02:58]}  Nh6 {[%clk 0:03:00]} 8. Na3 {[%clk 0:02:58]}  Bb4+ {[%clk 0:02:58]} 9. Bd2 {[%clk 0:02:56]}  Nxd4 {[%clk 0:02:54]} 10. Nxd4 {[%clk 0:02:50]}  Qxd4 {[%clk 0:02:38]} 11. Qa4+ {[%clk 0:02:50]} 1-0


[Site "https://www.chess.com"]

[Event "Titled Tuesday Blitz August 22 Early 2023"]
[White "Czopor, Maciej"]
[Black "Seletsky, Grigory"]
[WhiteFideId "21805431"]
[BlackFideId "14112191"]
[WhiteElo "2601"]
[BlackElo "2470"]
[Result "1/2-1/2"]
[Round "9"]
[TimeControl "180+1"]
[Date "2023.08.22"]
[WhiteClock "0:00:12"]
[BlackClock "0:01:05"]
[Board "88"]

1. d4 {[%clk 0:02:53]}  d5 {[%clk 0:02:58]} 2. c4 {[%clk 0:02:51]}  c6 {[%clk 0:02:57]} 3. Nc3 {[%clk 0:02:50]}  Nf6 {[%clk 0:02:58]} 4. Nf3 {[%clk 0:02:51]}  a6 {[%clk 0:02:58]} 5. c5 {[%clk 0:02:49]}  Bf5 {[%clk 0:02:56]} 6. Bf4 {[%clk 0:02:48]}  Nbd7 {[%clk 0:02:56]} 7. e3 {[%clk 0:02:48]}  e6 {[%clk 0:02:57]} 8. Be2 {[%clk 0:02:49]}  h6 {[%clk 0:02:55]} 9. h3 {[%clk 0:02:49]}  Be7 {[%clk 0:02:56]} 10. g4 {[%clk 0:02:49]}  Bh7 {[%clk 0:02:55]} 11. Ne5 {[%clk 0:02:49]}  Nxe5 {[%clk 0:02:54]} 12. Bxe5 {[%clk 0:02:50]}  O-O {[%clk 0:02:54]} 13. Qb3 {[%clk 0:02:47]}  Qc8 {[%clk 0:02:50]} 14. Na4 {[%clk 0:02:46]}  Nd7 {[%clk 0:02:50]} 15. Nb6 {[%clk 0:02:42]}  Nxb6 {[%clk 0:02:50]} 16. Qxb6 {[%clk 0:02:43]}  Bd8 {[%clk 0:02:50]} 17. Qb3 {[%clk 0:02:42]}  Bc7 {[%clk 0:02:51]} 18. f4 {[%clk 0:02:39]}  f6 {[%clk 0:02:49]} 19. Bxc7 {[%clk 0:02:38]}  Qxc7 {[%clk 0:02:50]} 20. O-O-O {[%clk 0:02:23]}  Be4 {[%clk 0:02:48]} 21. Rhg1 {[%clk 0:02:15]}  e5 {[%clk 0:02:48]} 22. dxe5 {[%clk 0:02:16]}  fxe5 {[%clk 0:02:47]} 23. f5 {[%clk 0:02:17]}  Qe7 {[%clk 0:02:43]} 24. Qc3 {[%clk 0:02:14]}  Rab8 {[%clk 0:02:34]} 25. Bd3 {[%clk 0:01:23]}  Bxd3 {[%clk 0:02:31]} 26. Rxd3 {[%clk 0:01:24]}  e4 {[%clk 0:02:28]} 27. Rd2 {[%clk 0:01:22]}  b6 {[%clk 0:02:28]} 28. cxb6 {[%clk 0:01:21]}  Rxb6 {[%clk 0:02:28]} 29. Kb1 {[%clk 0:01:14]}  Qf6 {[%clk 0:02:19]} 30. Qxf6 {[%clk 0:01:11]}  Rxf6 {[%clk 0:02:19]} 31. h4 {[%clk 0:01:03]}  Kf7 {[%clk 0:02:15]} 32. Rf2 {[%clk 0:00:58]}  g6 {[%clk 0:02:00]} 33. Rgf1 {[%clk 0:00:48]}  gxf5 {[%clk 0:01:56]} 34. Rxf5 {[%clk 0:00:49]}  Rxf5 {[%clk 0:01:50]} 35. Rxf5+ {[%clk 0:00:50]}  Ke7 {[%clk 0:01:33]} 36. Kc2 {[%clk 0:00:44]}  Rb8 {[%clk 0:01:32]} 37. Rh5 {[%clk 0:00:42]}  Rg8 {[%clk 0:01:30]} 38. Rxh6 {[%clk 0:00:39]}  Rxg4 {[%clk 0:01:31]} 39. Rxc6 {[%clk 0:00:40]}  Rxh4 {[%clk 0:01:30]} 40. Rxa6 {[%clk 0:00:36]}  Rh2+ {[%clk 0:01:28]} 41. Kc3 {[%clk 0:00:35]}  Re2 {[%clk 0:01:28]} 42. Kd4 {[%clk 0:00:32]}  Rd2+ {[%clk 0:01:23]} 43. Ke5 {[%clk 0:00:29]}  d4 {[%clk 0:01:21]} 44. exd4 {[%clk 0:00:05]}  e3 {[%clk 0:01:20]} 45. Re6+ {[%clk 0:00:04]}  Kd7 {[%clk 0:01:19]} 46. Kd5 {[%clk 0:00:05]}  Rxb2 {[%clk 0:01:17]} 47. Rxe3 {[%clk 0:00:05]}  Rxa2 {[%clk 0:01:16]} 48. Ke5 {[%clk 0:00:05]}  Ra5+ {[%clk 0:01:15]} 49. d5 {[%clk 0:00:05]}  Ra6 {[%clk 0:01:15]} 50. Rh3 {[%clk 0:00:05]}  Rb6 {[%clk 0:01:13]} 51. Rh7+ {[%clk 0:00:05]}  Kd8 {[%clk 0:01:12]} 52. Rh8+ {[%clk 0:00:06]}  Kd7 {[%clk 0:01:12]} 53. Rh4 {[%clk 0:00:07]}  Ra6 {[%clk 0:01:11]} 54. Rc4 {[%clk 0:00:07]}  Rb6 {[%clk 0:01:11]} 55. Ra4 {[%clk 0:00:08]}  Rh6 {[%clk 0:01:10]} 56. Ra7+ {[%clk 0:00:08]}  Kd8 {[%clk 0:01:10]} 57. Ra8+ {[%clk 0:00:08]}  Kd7 {[%clk 0:01:10]} 58. Rf8 {[%clk 0:00:09]}  Ra6 {[%clk 0:01:08]} 59. Rf7+ {[%clk 0:00:08]}  Kd8 {[%clk 0:01:08]} 60. Rf6 {[%clk 0:00:04]}  Rxf6 {[%clk 0:01:05]} 61. Kxf6 {[%clk 0:00:05]}  Kd7 {[%clk 0:01:05]} 62. Ke5 {[%clk 0:00:06]}  Ke7 {[%clk 0:01:05]} 63. d6+ {[%clk 0:00:07]}  Kd7 {[%clk 0:01:05]} 64. Kd5 {[%clk 0:00:08]}  Kd8 {[%clk 0:01:05]} 65. Ke6 {[%clk 0:00:09]}  Ke8 {[%clk 0:01:05]} 66. Ke5 {[%clk 0:00:10]}  Kd7 {[%clk 0:01:05]} 67. Kd5 {[%clk 0:00:10]}  Kd8 {[%clk 0:01:05]} 68. Kc5 {[%clk 0:00:11]}  Kd7 {[%clk 0:01:05]} 69. Kd5 {[%clk 0:00:12]} 1/2-1/2


[Site "https://www.chess.com"]

[Event "Titled Tuesday Blitz August 22 Early 2023"]
[White "Aevengho"]
[Black "Rietze, Clemens, Dr."]
[BlackFideId "24620351"]
[WhiteElo "2579"]
[BlackElo "2460"]
[Result "1-0"]
[Round "9"]
[TimeControl "180+1"]
[Date "2023.08.22"]
[WhiteClock "0:01:31"]
[BlackClock "0:01:00"]
[Board "89"]

1. e4 {[%clk 0:03:00]}  c5 {[%clk 0:02:58]} 2. Nc3 {[%clk 0:03:01]}  Nc6 {[%clk 0:02:58]} 3. Nf3 {[%clk 0:03:01]}  Nf6 {[%clk 0:02:58]} 4. Bb5 {[%clk 0:03:00]}  Qc7 {[%clk 0:02:52]} 5. O-O {[%clk 0:02:58]}  Nd4 {[%clk 0:02:39]} 6. e5 {[%clk 0:02:38]}  Nxf3+ {[%clk 0:02:35]} 7. Qxf3 {[%clk 0:02:39]}  Qxe5 {[%clk 0:02:35]} 8. d3 {[%clk 0:02:04]}  a6 {[%clk 0:02:26]} 9. Bc4 {[%clk 0:02:03]}  e6 {[%clk 0:01:57]} 10. Bf4 {[%clk 0:02:02]}  Qf5 {[%clk 0:01:57]} 11. Na4 {[%clk 0:01:44]}  Kd8 {[%clk 0:01:30]} 12. Nb6 {[%clk 0:01:41]}  Ra7 {[%clk 0:01:30]} 13. Bb8 {[%clk 0:01:39]}  Qxf3 {[%clk 0:01:23]} 14. gxf3 {[%clk 0:01:40]}  d5 {[%clk 0:01:23]} 15. Bb3 {[%clk 0:01:36]}  c4 {[%clk 0:01:18]} 16. dxc4 {[%clk 0:01:35]}  Bc5 {[%clk 0:01:00]} 17. Bxa7 {[%clk 0:01:31]} 1-0


[Site "https://www.chess.com"]

[Event "Titled Tuesday Blitz August 22 Early 2023"]
[White "Aggelis, Nikolaos"]
[Black "Rosh Jain"]
[WhiteFideId "4213220"]
[BlackFideId "25789465"]
[WhiteElo "2576"]
[BlackElo "2458"]
[Result "0-1"]
[Round "9"]
[TimeControl "180+1"]
[Date "2023.08.22"]
[WhiteClock "0:01:05"]
[BlackClock "0:01:01"]
[Board "90"]

1. c4 {[%clk 0:02:57]}  e6 {[%clk 0:02:59]} 2. g3 {[%clk 0:02:55]}  Nf6 {[%clk 0:02:59]} 3. Bg2 {[%clk 0:02:56]}  d5 {[%clk 0:02:59]} 4. Nf3 {[%clk 0:02:56]}  dxc4 {[%clk 0:02:59]} 5. Qa4+ {[%clk 0:02:56]}  Nc6 {[%clk 0:02:59]} 6. Qxc4 {[%clk 0:02:57]}  Bd6 {[%clk 0:02:58]} 7. O-O {[%clk 0:02:56]}  O-O {[%clk 0:02:59]} 8. d4 {[%clk 0:02:55]}  e5 {[%clk 0:02:50]} 9. dxe5 {[%clk 0:02:51]}  Nxe5 {[%clk 0:02:50]} 10. Nxe5 {[%clk 0:02:52]}  Bxe5 {[%clk 0:02:51]} 11. Nc3 {[%clk 0:02:52]}  c6 {[%clk 0:02:48]} 12. Be3 {[%clk 0:02:46]}  Be6 {[%clk 0:02:47]} 13. Qb4 {[%clk 0:02:43]}  Qc7 {[%clk 0:02:41]} 14. Rfd1 {[%clk 0:02:41]}  a5 {[%clk 0:02:15]} 15. Qh4 {[%clk 0:02:40]}  Rfd8 {[%clk 0:02:07]} 16. Ne4 {[%clk 0:02:15]}  Nxe4 {[%clk 0:01:59]} 17. Bxe4 {[%clk 0:02:15]}  g6 {[%clk 0:02:00]} 18. Bg5 {[%clk 0:02:11]}  Rxd1+ {[%clk 0:01:57]} 19. Rxd1 {[%clk 0:02:12]}  Bxb2 {[%clk 0:01:55]} 20. Bd8 {[%clk 0:02:12]}  Qe5 {[%clk 0:01:42]} 21. Bc2 {[%clk 0:01:46]}  Qxe2 {[%clk 0:01:23]} 22. Ba4 {[%clk 0:01:34]}  b5 {[%clk 0:01:14]} 23. Qe7 {[%clk 0:01:11]}  bxa4 {[%clk 0:01:05]} 24. Rd6 {[%clk 0:01:10]}  Qe1+ {[%clk 0:01:01]} 25. Kg2 {[%clk 0:01:05]}  Bd5+ {[%clk 0:01:01]} 0-1


[Site "https://www.chess.com"]